Workbook

Sheet Aufgabenstellung
A1: Aufgabenstellung

Sheet Daten
A1: 1. Vorgegebene Werte
A2: Jahr | B2: 2015 | C2: 2016 | D2: 2017 | E2: 2018 | F2: 2019 | G2: 2020
A3: STROMEINSPEISUNG MWh/a | B3: =B4/90 -> 90400 | C3: =C4/90 -> 90400 | D3: 90400 | E3: 90400 | F3: 90400 | G3: 90400
A4: Erlös Stromeinspeisung (90,00 €/MWh) | B4: 8136000 | C4: 8136000 | D4: 8136000 | E4: 8136000 | F4: 8136000 | G4: 8136000
A7: KOSTEN (€/a)
A8: Kapitalkosten
A9: Kalkulatorische Kosten für AV | B9: 1600000 | C9: =B9 -> 1600000 | D9: =C9 -> 1600000 | E9: 1600000 | F9: 1600000 | G9: 1600000
A10: Kalkulatorische Kosten für UV | B10: 170000 | C10: =B10*1.01 -> 171700 | D10: =C10*1.01 -> 173417 | E10: 175151.17 | F10: 176902.6817 | G10: 178671.7085
A11: Summe Kapitalkosten | B11: =SUM(B9:B10) -> 1770000 | C11: =SUM(C9:C10) -> 1771700 | D11: 1773417 | E11: 1775151.17 | F11: 1776902.682 | G11: 1778671.709
A13: Verbrauchsgebundene Kosten
A14: Brennstoffkosten | B14: 2000000 | C14: =B14*1.15 -> 2300000 | D14: =C14*1.15 -> 2645000 | E14: 3041750 | F14: 3498012.5 | G14: 4022714.375
A15: Stromversorgung | B15: 1000000 | C15: =B15*1.01 -> 1010000 | D15: 1020100 | E15: 1030301 | F15: 1040604.01 | G15: 1051010.05
A16: Ascheentsorgung | B16: 400000 | C16: =B16*1.01 -> 404000 | D16: 408040 | E16: 412120.4 | F16: 416241.604 | G16: 420404.02
A17: Wasseraufbereitung | B17: 40000 | C17: =B17*1.01 -> 40400 | D17: 40804 | E17: 41212.04 | F17: 41624.1604 | G17: 42040.402
A18: Hilfs- und Betriebsstoffe | B18: 600000 | C18: =B18*1.01 -> 606000 | D18: 612060 | E18: 618180.6 | F18: 624362.406 | G18: 630606.0301
A19: Summe verbrauchsgeb. Kosten | B19: =SUM(B14:B18) -> 4040000 | C19: =SUM(C14:C18) -> 4360400 | D19: 4726004 | E19: 5143564.04 | F19: 5620844.68 | G19: 6166774.877
A21: Betriebsgebundene Kosten
A22: Laufende Betriebsführung | B22: 1100000 | C22: =B22*1.01 -> 1111000 | D22: =C22*1.01 -> 1122110 | E22: 1133331.1 | F22: 1144664.411 | G22: 1156111.055
A23: Wartung und Instandhaltung | B23: 800000 | C23: =B23*1.01 -> 808000 | D23: =C23*1.01 -> 816080 | E23: 824240.8 | F23: 832483.208 | G23: 840808.0401
A24: Summe betriebsgeb. Kosten | B24: =SUM(B22:B23) -> 1900000 | C24: =SUM(C22:C23) -> 1919000 | D24: 1938190 | E24: 1957571.9 | F24: 1977147.619 | G24: 1996919.095
A26: Sonstige Kosten
A27: Versicherung | B27: 300000 | C27: =B27*1.01 -> 303000 | D27: =C27*1.01 -> 306030 | E27: 309090.3 | F27: 312181.203 | G27: 315303.015
A28: Summe sonstige Kosten | B28: =SUM(B27:B27) -> 300000 | C28: =SUM(C27:C27) -> 303000 | D28: 306030 | E28: 309090.3 | F28: 312181.203 | G28: 315303.015
A30: Summe jährliche Gesamtkosten | B30: =B11+B19+B24+B28 -> 8010000 | C30: =C11+C19+C24+C28 -> 8354100 | D30: 8743641 | E30: 9185377.41 | F30: 9687076.184 | G30: 10257668.7
A31: Stromgestehungskosten €/MWh | B31: =B30/B3 -> 88.60619469 | C31: =C30/C3 -> 92.41261062 | D31: 96.72169248 | E31: 101.6081572 | F31: 107.1579224 | G31: 113.4697865
A32: Stromgestehungskosten €/kWh | B32: =B31/1000 -> 0.08860619469 | C32: =C31/1000 -> 0.09241261062 | D32: 0.09672169248 | E32: 0.1016081572 | F32: 0.1071579224 | G32: 0.1134697865
A34: kalkulatorischer Gewinn(+) bzw. Verlust(-) | B34: =B4-B30 -> 126000 | C34: =C4-C30 -> -218100 | D34: -607641 | E34: -1049377.41 | F34: -1551076.184 | G34: -2121668.696
A36: 2. Berechnete Werte
A37: laufender Cash-Flow | B37: =B34+B9+B10 -> 1896000 | C37: 1553600 | D37: 1165776 | E37: 725773.76 | F37: 225826.4976 | G37: -342996.9874
A38: Liquidationserlös im Falle des Verkaufs der Anlage nach Rumänien | B38: 2000000 | C38: =B38-200000 -> 1800000 | D38: =C38-200000 -> 1600000 | E38: 1400000 | F38: 1200000 | G38: 1000000

Sheet Berechnung und Ergebnisse
A1: Ermittlung der optimalen Nutzungsdauer | E1: Kalkulationszins
B2: Cash Flow | C2: Liquidationserlös | D2: weitere Nutzung würde erbringen … | E2: 0.05
A3: 2015 | B3: =TRANSPOSE(Daten!B37:G38) -> 1896000 | C3: 2000000 | D3: =IF(MAX(C3,(B4+D4)/(1+E$2))=C3,C3,(B4+D4)/(1+E$2)) -> 4373335.545 | E3: =IF(D3>C3,"halten","verkaufen") -> halten | F3: Kapitalwert der Weiternutzung im Jahr 2015
A4: 2016 | B4: 1553600 | C4: 1800000 | D4: =IF(MAX(C4,(B5+D5)/(1+E$2))=C4,C4,(B5+D5)/(1+E$2)) -> 3038402.322 | E4: halten
A5: 2017 | B5: 1165776 | C5: 1600000 | D5: 2024546.438 | E5: halten | F5: Kapitalwert der Weiternutzung im Jahr 2017
A6: 2018 | B6: 725773.76 | C6: 1400000 | D6: 1400000 | E6: verkaufen | F6: Am Ende von 2018 verkaufen
A7: 2019 | B7: 225826.4976 | C7: 1200000 | D7: =IF(MAX(C7,(B8+D8)/(1+E$2))=C7,C7,(B8+D8)/(1+E$2)) -> 1200000 | E7: =IF(D7>C7,"halten","verkaufen") -> verkaufen
A8: 2020 | B8: -342996.9874 | C8: 1000000 | D8: =C8 -> 1000000 | E8: =IF(D8>C8,"halten","verkaufen") -> verkaufen
